fUSD/lending_fUSD_20250806
["ID","MTS","AMOUNT","RATE_DAILY","PERIOD"]
[377625303,1754465439852,-150.0,0.00029153,3]
[377625305,1754465439862,-300.0,0.00031393,3]
[377625306,1754465439871,-7273.12520455,0.00033,2]
[377625308,1754465439881,-1250.42859775,0.00033,2]
[377625310,1754465439905,-3749.57140225,0.00033,2]
[377625311,1754465439915,-261.72,0.00033344,2]
[377625312,1754465439924,-1118.052,0.00033352,2]
[377625313,1754465439934,-5017.259,0.00033352,2]
[377625314,1754465439943,-564.0,0.00033352,2]
[377625315,1754465439953,-865.0,0.00033352,2]
[377625316,1754465439962,-149.63259793,0.00033521,20]
[377625317,1754465439973,-292.3740628,0.00033521,20]
[377625318,1754465439982,-560.0,0.00033584,2]
[377625319,1754465439991,-116.88168952,0.00033665,2]
[377625320,1754465440003,-288.21437052,0.00033665,2]
[377625321,1754465440014,-283.616,0.00033665,2]
[377625324,1754465440038,-604.69793996,0.00033665,2]
[377625326,1754465440047,-192.43,0.00033679,2]
[377625328,1754465440056,-23900.0,0.0003369,2]
[377625329,1754465440067,-1000.0,0.00033732,2]
[377625331,1754465440077,-175.0,0.00033732,7]
[377625333,1754465440086,-250.0,0.00033859,2]
[377625335,1754465440095,-283.22,0.00033895,30]
[377625337,1754465440105,-315.39,0.0003392,2]
[377625339,1754465440114,-161.28,0.00034219,2]
[377625341,1754465440124,-98.62195366,0.00034288,2]
[377625344,1754465440135,-62.65804634,0.00034288,2]
[377625346,1754465440144,-161.28,0.00034356,2]
[377625348,1754465440154,-159.38,0.00034395,2]
[377625350,1754465440163,-175.41,0.00034398,120]
[377625351,1754465440172,-161.28,0.00034425,2]
[377625354,1754465440183,-196.45000164,0.00034454,120]
[377625355,1754465440191,-161.28,0.00034493,2]
[377625358,1754465440202,-161.28,0.00034561,2]
[377625359,1754465440212,-325.0,0.000346,2]
[377625362,1754465440221,-878.13775358,0.00034649,2]
[377625892,1754465445989,-150.0,0.00029653,3]
[377625893,1754465445999,-300.0,0.00031893,3]
[377625894,1754465446009,-50.65930115,0.00033352,2]
[377625895,1754465446020,-756.45735762,0.00033352,2]
[377625906,1754465446223,-150.88334123,0.00033352,2]
[377625907,1754465446233,-506.73665577,0.00034649,2]
[377625908,1754465446249,-1189.70252501,0.00034649,2]
[377625909,1754465446261,-632.46919043,0.00034649,2]
[377625910,1754465446349,-150.0,0.00030153,3]
[377625911,1754465446359,-300.0,0.00032393,3]
[377625912,1754465446369,-6837.2,0.00034649,2]
[377625917,1754465521557,2500.0,0.0002728,120]
[377625941,1754466632285,-500.0,0.000248,2]
[377625942,1754466632295,-4856.31732994,0.000266,5]
[377625943,1754466632307,-653.68267006,0.000266,5]
[377625944,1754466632318,-263.76,0.00027583,2]
[377625945,1754466632328,-187.19539487,0.00029313,2]
[377625946,1754466632339,-76.56460513,0.00029313,2]
[377625947,1754466632351,-1200.0,0.00029762,2]
[377625948,1754466632362,-512.0,0.00029763,2]
[377625949,1754466632373,-512.0,0.00029763,2]
[377625950,1754466632382,-512.0,0.00029763,2]
[377625951,1754466632392,-362.57,0.0002995,2]
[377625952,1754466632402,-150.91,0.00030675,30]
[377625953,1754466632413,-263.76,0.00031043,2]
[377625954,1754466632424,-150.91,0.00031807,30]
[377625955,1754466632435,-150.20785812,0.0003203,4]
[377625956,1754466632446,-150.0,0.0003203,4]
[377625957,1754466632456,-150.0,0.0003203,4]
[377625958,1754466632465,-150.0,0.0003203,4]
[377625959,1754466632475,-150.28027732,0.0003203,4]
[377625960,1754466632485,-150.0,0.0003203,4]
[377625961,1754466632495,-150.0,0.0003203,4]
[377625962,1754466632507,-150.0,0.0003203,4]
[377625963,1754466632516,-261.56683246,0.0003203,4]
[377625964,1754466632526,-150.53701695,0.0003203,4]
[377625965,1754466632536,-150.0,0.0003203,4]
[377625966,1754466632545,-150.0,0.0003203,4]
[377625967,1754466632555,-1680.0,0.00032221,3]
[377625968,1754466632565,-250.0,0.00032463,2]
[377625969,1754466632574,-153.74,0.00032521,2]
[377625970,1754466632583,-170.13,0.00032709,2]
[377625971,1754466632593,-263.76,0.00032774,2]
[377625972,1754466632603,-167.1,0.00032813,2]
[377625973,1754466632612,-3957.15583086,0.00032813,2]
[377625974,1754466632626,-11369.71572792,0.00032813,2]
[377625975,1754466632638,-1449.97360709,0.00032813,2]
[377625976,1754466632668,-1661.6087598,0.00032813,2]
[377625977,1754466632680,-2055.56611014,0.00032813,2]
[377625978,1754466632739,-150.0,0.00028083,3]
[377625979,1754466632747,-2998.97995,0.00032813,2]
[377625993,1754466638069,-300.0,0.00030323,3]
[377625994,1754466638079,-71.49343738,0.00032813,2]
[377625995,1754466638146,-335.50657681,0.00032813,2]
[377625996,1754466638156,-153.74,0.00032846,2]
[377625997,1754466638165,-200.0,0.00032853,2]
[377625998,1754466638175,-457.43778519,0.00032946,2]
[377625999,1754466638184,-296.42,0.00033108,2]
[377626000,1754466638194,-512.0,0.00033123,8]
[377626001,1754466638203,-412.85,0.00033283,2]
[377626002,1754466638212,-500.0,0.0003338,2]
[377626003,1754466638222,-165.49,0.00033483,2]
[377626004,1754466638232,-384.0,0.000335,2]
[377626005,1754466638242,-300.0,0.000336,12]
[377626006,1754466638251,-257.48092199,0.00033642,2]
[377626007,1754466638262,-600.0,0.000337,12]
[377626008,1754466638274,-230.46,0.00033797,2]
[377626009,1754466638283,-1000.0,0.000338,12]
[377626010,1754466638294,-999.99,0.00033844,2]
[377626011,1754466638303,-299.99,0.00033844,30]
[377626012,1754466638314,-1504.86,0.00033844,30]
[377626013,1754466638323,-9999.99,0.00033844,2]
[377626014,1754466638332,-150.99,0.00033844,2]
[377626015,1754466638342,-339.18,0.00033844,2]
[377626016,1754466638352,-9999.99,0.00033844,2]
[377626017,1754466638361,-150.99,0.00033844,30]
[377626018,1754466638370,-9999.99,0.00033844,2]
[377626019,1754466638380,-181.03,0.00033844,10]
[377626020,1754466638389,-9999.99,0.00033844,2]
[377626021,1754466638398,-1505.06,0.00033844,2]
[377626022,1754466638407,-1275.87,0.00033844,2]
[377626023,1754466638417,-233.92,0.00033844,120]
[377626024,1754466638426,-404.906,0.00033844,37]
[377626025,1754466638436,-1000.0,0.00033848,2]
[377626026,1754466638446,-190.32781787,0.00033889,2]
[377626027,1754466638455,-154.93060664,0.00033889,2]
[377626028,1754466638465,-152.70699154,0.00033889,15]
[377626029,1754466638475,-614.6219493,0.00033899,2]
[377626030,1754466638483,-557.89891002,0.000339,2]
[377626031,1754466638492,-1300.0,0.000339,12]
[377626032,1754466638502,-281.08707925,0.000339,2]
[377626033,1754466638511,-175.0,0.00033923,7]
[377626034,1754466638520,-254.89,0.00033949,30]
[377626035,1754466638530,-1242.4,0.00033979,2]
[377626036,1754466638539,-373.1,0.00033979,2]
[377626037,1754466638548,-373.1,0.00033979,2]
[377626038,1754466638557,-2020388.56302848,0.00033979,2]
[377626039,1754466638566,-151.0,0.00033979,2]
[377626040,1754466638575,-151.0,0.00033979,2]
[377626041,1754466638585,-151.0,0.00033979,2]
[377626042,1754466638594,-151.0,0.00033979,2]
[377626043,1754466638603,-151.0,0.00033979,2]
[377626044,1754466638613,-151.0,0.00033979,2]
[377626045,1754466638623,-151.0,0.00033979,2]
[377626046,1754466638632,-151.0,0.00033979,2]
[377626047,1754466638641,-151.0,0.00033979,2]
[377626048,1754466638651,-151.0,0.00033979,2]
[377626049,1754466638661,-151.0,0.00033979,2]
[377626050,1754466638670,-151.0,0.00033979,2]
[377626051,1754466638680,-151.0,0.00033979,2]
[377626052,1754466638689,-151.0,0.00033979,2]
[377626053,1754466638699,-151.0,0.00033979,2]
[377626054,1754466638709,-151.0,0.00033979,2]
[377626055,1754466638718,-151.0,0.00033979,2]
[377626056,1754466638728,-151.0,0.00033979,2]
[377626057,1754466638737,-151.0,0.00033979,2]
[377626058,1754466638747,-151.0,0.00033979,2]
[377626059,1754466638756,-207.28889257,0.00033988,7]
[377626060,1754466638766,-200.98088474,0.00033988,7]
[377626061,1754466638776,-109094.1282583,0.00033989,2]
[377626063,1754466638786,-113159.243163,0.00033989,2]
[377626064,1754466638795,-247594.978617,0.00033989,2]
[377626065,1754466638805,-300.0,0.00033998,10]
[377626066,1754466638815,-300.0,0.00033999,10]
[377626067,1754466638824,-676.63404309,0.00033999,10]
[377626068,1754466638833,-2052.05776079,0.00033999,2]
[377626069,1754466638843,-185.38397267,0.00033999,2]
[377626070,1754466638852,-618945.0,0.00034,3]
[377626071,1754466638862,-445.87691867,0.00034,3]
[377626072,1754466638871,-457.13520606,0.00034,3]
[377626073,1754466638880,-614.62194927,0.00034079,2]
[377626074,1754466638889,-557.89890994,0.0003408,2]
[377626075,1754466638899,-165.31,0.0003408,2]
[377626076,1754466638909,-1441.43,0.0003408,2]
[377626077,1754466638919,-190.32781782,0.00034239,2]
[377626078,1754466638928,-614.62194927,0.00034258,2]
[377626079,1754466638937,-557.89890994,0.00034259,2]
[377626080,1754466638946,-595.97887998,0.0003431,2]
[377626081,1754466638956,-152.7069915,0.00034317,15]
[377626082,1754466638966,-281.08707924,0.00034388,2]
[377626083,1754466638976,-614.62194927,0.00034438,2]
[377626084,1754466638986,-557.89890994,0.00034439,2]
[377626085,1754466638997,-876.21753588,0.0003445,2]
[377626086,1754466639006,-196.45000163,0.00034454,120]
[377626087,1754466639016,-263.76,0.00034504,2]
[377626088,1754466639025,-190.32781782,0.00034589,2]
[377626089,1754466639034,-350.0,0.00034614,2]
[377626090,1754466639044,-614.62194927,0.00034618,2]
[377626091,1754466639053,-557.89890994,0.00034618,2]
[377626092,1754466639063,-204.41644395,0.00034629,2]
[377626093,1754466639072,-500.0,0.00034629,2]
[377626094,1754466639082,-500.0,0.00034629,2]
[377626095,1754466639091,-500.0,0.00034629,2]
[377626096,1754466639100,-500.0,0.00034629,2]
[377626097,1754466639109,-150.0,0.00034629,2]
[377626098,1754466639118,-500.0,0.00034629,2]
[377626099,1754466639127,-151.45071453,0.00034629,2]
[377626100,1754466639136,-456.0,0.00034629,2]
[377626101,1754466639145,-842.03384774,0.0003464,2]
[377626102,1754466639155,-1000.0,0.00034647,2]
[377626103,1754466639164,-300.0,0.00034647,10]
[377626104,1754466639173,-3500.0,0.00034649,120]
[377626105,1754466639183,-866.27,0.00034649,2]
[377626106,1754466639191,-376.0,0.0003468,2]
[377626107,1754466639201,-150.0,0.000347,30]
[377626108,1754466639210,-152.7069915,0.00034745,15]
[377626109,1754466639219,-614.62194927,0.00034797,2]
[377626110,1754466639229,-557.89890994,0.00034798,2]
[377626111,1754466639238,-2000.0,0.000348,2]
[377626112,1754466639247,-500.0,0.000348,12]
[377626113,1754466639256,-1280.0,0.000348,12]
[377626114,1754466639266,-200.84398615,0.000348,12]
[377626115,1754466639279,-500.0,0.000348,12]
[377626116,1754466639288,-500.0,0.000348,12]
[377626117,1754466639297,-500.0,0.000348,12]
[377626118,1754466639307,-150.0,0.000348,12]
[377626119,1754466639317,-500.0,0.000348,12]
[377626120,1754466639326,-151.55448236,0.000348,12]
[377626121,1754466639335,-500.0,0.000348,12]
[377626122,1754466639344,-500.0,0.000348,12]
[377626123,1754466639355,-150.0,0.000348,12]
[377626124,1754466639364,-500.0,0.000348,7]
[377626125,1754466639374,-150.0,0.000348,2]
[377626126,1754466639383,-500.0,0.000348,12]
[377626127,1754466639393,-500.0,0.000348,12]
[377626128,1754466639402,-150.0,0.000348,2]
[377626129,1754466639412,-500.0,0.000348,12]
[377626130,1754466639421,-150.0,0.000348,2]
[377626131,1754466639431,-622.0,0.000348,12]
[377626132,1754466639440,-281.08707924,0.00034875,2]
[377626133,1754466639449,-2351.0,0.00034884,3]
[377626134,1754466639458,-152.0,0.00034887,3]
[377626135,1754466639467,-500.0,0.00034903,2]
[377626136,1754466639476,-500.0,0.00034903,2]
[377626137,1754466639485,-500.0,0.00034903,2]
[377626138,1754466639495,-500.0,0.00034903,2]
[377626139,1754466639505,-150.92211011,0.00034903,2]
[377626140,1754466639515,-500.0,0.00034903,2]
[377626141,1754466639524,-456.0,0.00034903,2]
[377626142,1754466639534,-190.32781782,0.00034939,2]
[377626143,1754466639544,-614.62194927,0.00034977,2]
[377626144,1754466639554,-557.89890994,0.00034977,2]
[377626145,1754466639563,-1000.0,0.00035,2]
[377626146,1754466639572,-3500.0,0.00035,2]
[377626147,1754466639582,-16365.10814305,0.00035,30]
[377626148,1754466639591,-500.0,0.00035074,12]
[377626149,1754466639601,-1280.0,0.00035074,12]
[377626150,1754466639610,-500.0,0.00035074,12]
[377626151,1754466639619,-500.0,0.00035074,12]
[377626152,1754466639629,-500.0,0.00035074,12]
[377626153,1754466639638,-150.0,0.00035074,12]
[377626154,1754466639647,-500.0,0.00035074,12]
[377626155,1754466639656,-500.0,0.00035074,12]
[377626156,1754466639666,-500.0,0.00035074,12]
[377626157,1754466639675,-150.0,0.00035074,12]
[377626158,1754466639684,-500.0,0.00035074,12]
[377626159,1754466639693,-500.0,0.00035074,12]
[377626160,1754466639702,-500.0,0.00035074,12]
[377626161,1754466639712,-622.0,0.00035074,12]
[377626162,1754466639721,-600.0,0.00035099,20]
[377626163,1754466639730,-600.0,0.00035099,20]
[377626164,1754466639740,-160.0,0.00035099,20]
[377626165,1754466639749,-160.0,0.00035099,20]
[377626166,1754466639758,-160.0,0.00035099,20]
[377626167,1754466639767,-160.0,0.00035099,20]
[377626168,1754466639776,-160.0,0.00035099,20]
[377626169,1754466639785,-160.0,0.00035099,20]
[377626170,1754466639795,-160.0,0.00035099,20]
[377626171,1754466639804,-160.0,0.00035099,20]
[377626172,1754466639814,-160.0,0.00035099,20]
[377626173,1754466639823,-160.0,0.00035099,20]
[377626174,1754466639833,-600.0,0.00035099,20]
[377626175,1754466639842,-160.0,0.00035099,20]
[377626176,1754466639851,-600.0,0.00035099,20]
[377626177,1754466639861,-500.0,0.00035099,20]
[377626178,1754466639870,-600.0,0.00035099,20]
[377626179,1754466639880,-500.0,0.00035099,20]
[377626180,1754466639890,-250.0,0.00035099,20]
[377626181,1754466639899,-575.19122668,0.00035099,20]
[377626182,1754466639909,-250.0,0.00035099,20]
[377626183,1754466639918,-250.0,0.00035099,20]
[377626184,1754466639928,-250.0,0.00035099,20]
[377626185,1754466639938,-250.0,0.00035099,20]
[377626186,1754466639947,-250.0,0.00035099,20]
[377626187,1754466639957,-250.0,0.00035099,20]
[377626188,1754466639967,-250.0,0.00035099,20]
[377626189,1754466639979,-1619.094374,0.000351,20]
[377626190,1754466639990,-150.0,0.0003513,2]
[377626192,1754466640307,-614.62194927,0.00035157,2]
[377626193,1754466640322,-557.89890994,0.00035157,2]
[377626194,1754466640332,-152.7069915,0.00035173,15]
[377626195,1754466640341,-500.0,0.00035177,2]
[377626196,1754466640351,-500.0,0.00035177,2]
[377626197,1754466640360,-500.0,0.00035177,2]
[377626198,1754466640370,-500.0,0.00035177,2]
[377626199,1754466640380,-500.0,0.00035177,2]
[377626200,1754466640389,-456.0,0.00035177,2]
[377626201,1754466640399,-783.0,0.000352,2]
[377626202,1754466640408,-240.0,0.000352,2]
[377626203,1754466640418,-379.0,0.000352,2]
[377626204,1754466640427,-1000.0,0.00035205,2]
[377626205,1754466640436,-150.0,0.00035213,2]
[377626206,1754466640445,-159.0,0.00035218,5]
[377626207,1754466640454,-150.0,0.00035252,2]
[377626208,1754466640464,-350.46440155,0.00035262,120]
[377626209,1754466640473,-165.09827537,0.00035262,120]
[377626210,1754466640482,-150.0,0.00035282,2]
[377626211,1754466640491,-190.32781782,0.00035288,2]
[377626212,1754466640501,-150.0,0.00035291,2]
[377626213,1754466640510,-189961.1381,0.00035292,2]
[377626214,1754466640519,-16966.4817,0.00035292,2]
[377626215,1754466640529,-151.0,0.00035292,7]
[377626216,1754466640538,-151.0,0.00035292,7]
[377626217,1754466640552,-150.0,0.00035298,2]
[377626218,1754466640561,-3427.0,0.000353,2]
[377626219,1754466640570,-150.0,0.00035303,2]
[377626220,1754466640580,-150.0,0.00035318,2]
[377626221,1754466640591,-150.0,0.0003532,2]
[377626222,1754466640600,-150.0,0.00035328,2]
[377626223,1754466640609,-150.0,0.00035328,2]
[377626224,1754466640619,-150.0,0.00035329,2]
[377626225,1754466640630,-301.25,0.0003533,2]
[377626226,1754466640640,-614.62194927,0.00035336,2]
[377626227,1754466640650,-557.89890994,0.00035336,2]
[377626228,1754466640659,-150.0,0.00035342,2]
[377626229,1754466640669,-362.57,0.00035344,2]
[377626230,1754466640679,-500.0,0.00035348,12]
[377626231,1754466640688,-1280.0,0.00035348,12]
[377626232,1754466640698,-500.0,0.00035348,12]
[377626233,1754466640708,-500.0,0.00035348,12]
[377626234,1754466640718,-425.88686986,0.00035348,12]
[377626235,1754466640729,-150.0,0.00035348,12]
[377626236,1754466640739,-500.0,0.00035348,12]
[377626237,1754466640750,-500.0,0.00035348,12]
[377626238,1754466640760,-500.0,0.00035348,12]
[377626239,1754466640769,-166.95494966,0.00035348,12]
[377626240,1754466640780,-500.0,0.00035348,12]
[377626241,1754466640790,-500.0,0.00035348,12]
[377626242,1754466640801,-500.0,0.00035348,12]
[377626243,1754466640811,-622.0,0.00035348,12]
[377626244,1754466640820,-150.0,0.00035349,2]
[377626245,1754466640829,-150.0,0.00035351,2]
[377626246,1754466640839,-150.0,0.00035352,2]
[377626247,1754466640848,-281.08707924,0.00035363,2]
[377626248,1754466640857,-150.0,0.00035366,2]
[377626249,1754466640867,-150.0,0.00035381,2]
[377626250,1754466640876,-150.0,0.00035383,2]
[377626251,1754466640885,-211.52696026,0.0003539,2]
[377626252,1754466640896,-300.0,0.00035391,10]
[377626253,1754466640905,-150.0,0.00035396,2]
[377626254,1754466640915,-2487.66630625,0.000354,8]
[377626255,1754466640926,-500.0,0.00035401,15]
[377626256,1754466640935,-500.0,0.00035401,15]
[377626257,1754466640944,-500.0,0.00035401,15]
[377626258,1754466640953,-500.0,0.00035401,15]
[377626259,1754466640964,-500.0,0.00035401,15]
[377626260,1754466640975,-500.0,0.00035401,15]
[377626261,1754466640987,-500.0,0.00035401,15]
[377626262,1754466640996,-500.0,0.00035401,15]
[377626263,1754466641006,-500.0,0.00035401,15]
[377626264,1754466641019,-500.0,0.00035401,15]
[377626265,1754466641030,-500.0,0.00035401,15]
[377626266,1754466641039,-500.0,0.00035401,15]
[377626267,1754466641050,-500.0,0.00035401,15]
[377626268,1754466641059,-217.32910817,0.00035401,15]
[377626269,1754466641068,-150.0,0.00035406,2]
[377626270,1754466641079,-150.0,0.00035411,2]
[377626271,1754466641089,-357.84,0.00035412,2]
[377626272,1754466641099,-1000.0,0.00035413,14]
[377626273,1754466641109,-298.27,0.00035413,14]
[377626274,1754466641118,-350.6231296,0.00035414,5]
[377626275,1754466641128,-182.28,0.00035416,2]
[377626276,1754466641138,-293.43641353,0.00035416,2]
[377626277,1754466641148,-150.0,0.00035423,2]
[377626278,1754466641157,-150.0,0.00035424,2]
[377626279,1754466641166,-150.0,0.00035434,2]
[377626280,1754466641175,-150.0,0.00035438,2]
[377626281,1754466641185,-150.0,0.0003544,2]
[377626282,1754466641194,-176.653,0.00035447,2]
[377626283,1754466641203,-809.0,0.00035447,2]
[377626284,1754466641213,-1252.0,0.00035447,2]
[377626285,1754466641224,-958.0,0.00035447,2]
[377626286,1754466641234,-1149.664,0.00035447,2]
[377626287,1754466641243,-597.0,0.00035447,2]
[377626288,1754466641253,-6073.0,0.00035447,2]
[377626289,1754466641262,-4139.0,0.00035447,2]
[377626290,1754466641272,-865.0,0.00035447,2]
[377626291,1754466641282,-1000.0,0.00035449,2]
[377626292,1754466641293,-500.0,0.00035451,2]
[377626293,1754466641302,-500.0,0.00035451,2]
[377626294,1754466641312,-500.0,0.00035451,2]
[377626295,1754466641323,-500.0,0.00035451,2]
[377626296,1754466641333,-500.0,0.00035451,2]
[377626297,1754466641343,-456.0,0.00035451,2]
[377626298,1754466641354,-150.0,0.00035458,2]
[377626299,1754466641363,-150.0,0.00035465,2]
[377626300,1754466641374,-309.3,0.00035465,2]
[377626301,1754466641383,-230.46,0.00035487,2]
[377626302,1754466641394,-150.0,0.0003549,2]
[377626303,1754466641404,-150.0,0.00035495,2]
[377626304,1754466641416,-150.0,0.000355,2]
[377626305,1754466641428,-150.0,0.00035507,2]
[377626306,1754466641440,-150.0,0.00035508,2]
[377626307,1754466641451,-150.0,0.00035511,2]
[377626308,1754466641463,-150.0,0.00035515,120]
[377626309,1754466641475,-9559.5708,0.00035516,2]
[377626310,1754466641498,-557.89890994,0.00035516,2]
[377626311,1754466641519,-614.62194927,0.00035516,2]
[377626312,1754466641541,-154.93060663,0.00035516,2]
[377626313,1754466641554,-227.5728969,0.00035516,2]
[377626314,1754466641565,-192.88872048,0.00035516,2]
[377626315,1754466641575,-150.0,0.00035522,2]
[377626316,1754466641586,-1000.0,0.0003553,2]
[377626317,1754466641597,-153.0360799,0.00035531,2]
[377626318,1754466641606,-150.0,0.00035533,2]
[377626319,1754466641616,-150.0,0.0003554,2]
[377626320,1754466641626,-1000.0,0.00035545,2]
[377626321,1754466641635,-150.0,0.00035557,2]
[377626322,1754466641644,-150.0,0.00035568,2]
[377626323,1754466641653,-1000.0,0.0003558,2]
[377626324,1754466641663,-150.0,0.00035584,2]
[377626325,1754466641673,-150.0,0.00035589,7]
[377626326,1754466641684,-150.0,0.00035589,7]
[377626327,1754466641694,-150.0,0.00035589,7]
[377626328,1754466641704,-362.57,0.0003559,2]
[377626329,1754466641715,-1000.0,0.00035599,2]
[377626330,1754466641726,-684.66,0.000356,2]
[377626331,1754466641736,-1500.0,0.000356,20]
[377626332,1754466641745,-150.0,0.000356,2]
[377626333,1754466641756,-150.0,0.00035601,2]
[377626334,1754466641765,-152.7069915,0.00035602,15]
[377626335,1754466641775,-150.0,0.0003561,2]
[377626336,1754466641787,-359.31,0.00035612,2]
[377626337,1754466641797,-300.0,0.00035615,10]
[377626338,1754466641807,-666.0,0.00035615,10]
[377626339,1754466641816,-300.0,0.00035615,10]
[377626340,1754466641826,-300.0,0.00035615,10]
[377626341,1754466641836,-150.0,0.00035615,2]
[377626342,1754466641847,-1000.0,0.00035615,2]
[377626343,1754466641858,-461.08941942,0.00035615,120]
[377626344,1754466641868,-101549.1737782,0.00035616,2]
[377626345,1754466641877,-2500.0,0.00035616,14]
[377626346,1754466641885,-166.945974,0.00035616,14]
[377626347,1754466641895,-400.0,0.00035616,14]
[377626348,1754466641905,-400.0,0.00035616,14]
[377626349,1754466641915,-400.0,0.00035616,14]
[377626350,1754466641925,-400.0,0.00035616,14]
[377626351,1754466641935,-400.0,0.00035616,14]
[377626352,1754466641945,-400.0,0.00035616,14]
[377626353,1754466641954,-400.0,0.00035616,14]
[377626354,1754466641963,-530.55340556,0.00035616,14]
[377626355,1754466641972,-400.0,0.00035616,14]
[377626356,1754466641981,-400.0,0.00035616,14]
[377626357,1754466641991,-400.0,0.00035616,14]
[377626358,1754466642000,-400.0,0.00035616,14]
[377626359,1754466642009,-400.0,0.00035616,14]
[377626360,1754466642019,-400.0,0.00035616,14]
[377626361,1754466642028,-400.0,0.00035616,14]
[377626362,1754466642037,-400.0,0.00035616,14]
[377626363,1754466642048,-519.83246773,0.00035616,14]
[377626364,1754466642058,-400.0,0.00035616,14]
[377626365,1754466642067,-400.0,0.00035616,14]
[377626366,1754466642077,-400.0,0.00035616,14]
[377626367,1754466642088,-410.62799644,0.00035616,14]
[377626368,1754466642097,-400.0,0.00035616,14]
[377626369,1754466642107,-400.0,0.00035616,14]
[377626370,1754466642117,-437.42865923,0.00035616,14]
[377626371,1754466642127,-400.0,0.00035616,14]
[377626372,1754466642136,-400.0,0.00035616,14]
[377626373,1754466642146,-400.0,0.00035616,14]
[377626374,1754466642155,-400.0,0.00035616,14]
[377626375,1754466642164,-400.0,0.00035616,14]
[377626376,1754466642174,-400.0,0.00035616,14]
[377626377,1754466642186,-400.0,0.00035616,14]
[377626378,1754466642196,-400.0,0.00035616,14]
[377626379,1754466642205,-1422.63,0.00035616,14]
[377626380,1754466642215,-400.0,0.00035616,14]
[377626381,1754466642226,-400.0,0.00035616,14]
[377626382,1754466642236,-400.0,0.00035616,14]
[377626383,1754466642245,-482.82883652,0.00035616,14]
[377626384,1754466642255,-400.0,0.00035616,14]
[377626385,1754466642265,-351.79705418,0.00035616,14]
[377626386,1754466642279,-400.0,0.00035616,14]
[377626387,1754466642289,-400.0,0.00035616,14]
[377626388,1754466642299,-1802.03,0.00035616,14]
[377626389,1754466642309,-150.0,0.00035616,15]
[377626390,1754466642320,-400.0,0.00035616,14]
[377626391,1754466642330,-2529.08,0.00035616,14]
[377626392,1754466642339,-400.0,0.00035616,14]
[377626393,1754466642350,-989.57,0.00035616,2]
[377626394,1754466642359,-400.0,0.00035616,14]
[377626395,1754466642369,-400.0,0.00035616,14]
[377626396,1754466642379,-402.71,0.00035616,14]
[377626397,1754466642388,-400.0,0.00035616,14]
[377626398,1754466642397,-400.0,0.00035616,14]
[377626399,1754466642408,-151.0,0.00035616,7]
[377626400,1754466642418,-152.455121,0.00035616,7]
[377626401,1754466642427,-400.0,0.00035616,14]
[377626402,1754466642437,-400.0,0.00035616,14]
[377626403,1754466642449,-400.0,0.00035616,14]
[377626404,1754466642460,-151.0,0.00035616,7]
[377626405,1754466642469,-151.0,0.00035616,7]
[377626406,1754466642479,-151.0,0.00035616,7]
[377626407,1754466642490,-151.0,0.00035616,7]